bitfinex-derivatives/quotes_BNBF0:USTF0_20250401
["timestamp","ask_amount","ask_price","bid_price","bid_amount"]
[1743512760017,1.3546202,613.02,612.16,0.27418393]
[1743512760219,1.3546202,613.02,612.13,0.27418393]
[1743512760619,1.36702079,613.03,612.13,0.27418393]
[1743512760816,1.08297973,613.01,612.13,0.27418393]
[1743512761322,1.08297973,613.0,612.13,0.27418393]
[1743512761523,1.08297973,613.0,612.14,0.525]
[1743512761720,1.08297973,613.0,612.15,0.27418393]
[1743512761919,1.08297973,612.99,612.15,0.27418393]
[1743512762521,1.08297973,612.98,612.15,0.27418393]
[1743512762919,1.08297973,612.97,612.15,0.27418393]
[1743512763324,1.08297973,612.96,612.15,0.27418393]
[1743512763924,1.08297973,612.97,612.15,0.27418393]
[1743512764322,1.08297973,612.96,612.15,0.27418393]
[1743512764716,0.28405381,612.98,612.15,0.27418393]
[1743512764924,0.28405381,612.98,612.14,0.525]
[1743512765125,0.28405381,612.98,612.15,0.27418616]
[1743512765324,1.080712,612.97,612.15,0.27418616]
[1743512765723,1.080712,612.96,612.15,0.27418616]
[1743512766039,1.36476813,612.96,612.15,0.27418616]
[1743512766223,0.28405613,612.96,612.14,0.525]
[1743512766423,1.35159842,612.95,612.14,0.525]
[1743512766625,1.35159842,612.94,612.14,0.525]
[1743512766824,1.08038202,612.94,612.14,0.525]
[1743512767419,1.35159842,612.93,612.14,0.525]
[1743512767625,2.43198044,612.93,612.14,0.525]
[1743512767924,1.08038202,612.92,612.14,0.525]
[1743512768722,1.08038202,612.91,612.15,0.895]
[1743512769225,1.08038202,612.9,612.15,0.895]
[1743512769927,0.28408859,612.89,612.15,0.895]
[1743512770126,1.36447061,612.89,612.15,0.895]
[1743512770626,1.08038202,612.88,612.15,0.895]
[1743512771229,1.08038202,612.87,612.15,0.895]
[1743512771626,1.08038202,612.87,612.15,1.715]
[1743512771822,1.08038202,612.86,612.15,1.715]
[1743512772025,1.08038202,612.85,612.15,1.715]
[1743512772727,1.35105172,612.93,612.15,1.715]
[1743512772927,0.28409439,612.84,612.15,1.715]
[1743512773128,1.35105172,612.93,612.15,1.715]
[1743512773324,0.823,612.94,612.15,1.715]
[1743512773325,2.43235332,612.92,612.15,1.715]
[1743512773528,0.28408511,612.83,612.15,1.715]
[1743512773827,2.43235332,612.92,612.15,1.715]
[1743512774027,1.0813016,612.91,612.15,1.715]
[1743512774229,0.28408627,612.82,612.15,1.715]
[1743512774425,1.0813016,612.9,612.15,1.715]
[1743512774828,0.28408743,612.81,612.15,1.715]
[1743512775025,1.0813016,612.89,612.15,1.715]
[1743512775428,1.0813016,612.88,612.15,1.715]
[1743512776129,0.28409091,612.87,612.16,0.2742452]
[1743512776427,1.0813016,612.86,612.16,0.2742452]
[1743512777022,0.28409091,612.87,612.16,0.2742452]
[1743512777023,1.0813016,612.85,612.16,0.2742452]
[1743512778024,0.823,612.94,612.16,0.2742452]
[1743512778025,1.3534908,612.92,612.16,0.2742452]
[1743512778323,1.3534908,612.91,612.17,0.27424498]
[1743512778529,1.082713,612.9,612.18,0.27424498]
[1743512778828,1.36680043,612.9,612.19,0.27424498]
[1743512779029,1.082713,612.89,612.15,1.715]
[1743512779221,1.082713,612.89,612.16,0.27423511]
[1743512779427,1.082713,612.88,612.16,0.27423511]
[1743512780021,1.082713,612.87,612.15,1.715]
[1743512780228,1.082713,612.87,612.16,0.27425808]
[1743512780727,1.082713,612.86,612.16,0.27425808]
[1743512780928,1.36682594,612.86,612.16,0.27425808]
[1743512781229,1.082713,612.85,612.16,0.27425808]
[1743512781529,1.082713,612.84,612.16,0.27425808]
[1743512782027,1.082713,612.83,612.16,0.27425808]
[1743512782630,1.082713,612.82,612.15,1.715]
[1743512782832,1.082713,612.82,612.16,0.274195]
[1743512783232,0.28411294,612.86,612.16,0.274195]
[1743512783633,2.00138054,612.85,612.16,0.274195]
[1743512784229,1.08438054,612.84,612.16,1.367195]
[1743512784430,1.08438054,612.84,612.17,0.274195]
[1743512784835,1.08438054,612.83,612.17,0.274195]
[1743512785232,0.917,612.85,612.17,0.274195]
[1743512785534,2.2704908,612.85,612.17,0.274195]
[1743512785936,1.08498666,612.84,612.18,0.27418445]
[1743512786135,1.08498666,612.84,612.17,0.27418445]
[1743512786435,1.08498666,612.84,612.18,0.27418445]
[1743512786635,0.917,612.85,612.16,1.093]
[1743512786636,1.08498666,612.83,612.19,0.27418445]
[1743512786835,1.08498666,612.83,612.16,1.093]
[1743512786836,1.36908337,612.83,612.2,0.27418445]
[1743512787033,1.36908337,612.83,612.17,0.27418445]
[1743512787232,1.08498666,612.82,612.18,0.27418445]
[1743512787435,1.08498666,612.82,612.17,0.27418445]
[1743512787636,1.08498666,612.82,612.16,1.093]
[1743512787831,1.08498666,612.82,612.17,0.27417405]
[1743512788238,0.28409671,612.83,612.17,0.27417405]
[1743512789032,0.28409671,612.83,612.18,0.27424363]
[1743512789237,1.08507757,612.82,612.17,0.2742449]
[1743512789437,1.08507757,612.82,612.16,1.093]
[1743512789638,1.08507757,612.82,612.17,0.2742468]
[1743512790040,1.08507757,612.81,612.17,0.2742468]
[1743512790237,0.28409671,612.83,612.17,0.2742468]
[1743512792139,1.35755591,612.82,612.16,1.093]
[1743512792336,1.35755591,612.81,612.17,1.695]
[1743512792642,1.35755591,612.8,612.17,1.695]
[1743512792941,1.35755591,612.79,612.17,1.695]
[1743512793237,1.35755591,612.78,612.17,1.695]
[1743512793438,1.35755591,612.77,612.17,1.695]
[1743512793640,1.35755591,612.76,612.17,1.695]
[1743512793835,1.35755591,612.75,612.17,1.695]
[1743512794040,2.44338738,612.74,612.17,1.695]
[1743512794236,1.35755591,612.73,612.17,1.695]
[1743512794442,1.35929423,612.72,612.17,1.695]
[1743512794636,1.08583147,612.74,612.17,1.695]
[1743512794836,1.35930598,612.73,612.17,1.695]
[1743512795043,1.35928122,612.72,612.17,1.695]
[1743512795237,2.44512572,612.71,612.17,1.695]
[1743512795440,1.08583147,612.71,612.17,1.695]
[1743512795639,1.08583147,612.7,612.17,1.695]
[1743512796040,1.08583147,612.69,612.17,1.695]
[1743512796442,1.36115836,612.68,612.17,1.695]
[1743512796641,1.08583147,612.69,612.17,1.695]
[1743512796842,1.36119605,612.68,612.17,1.695]
[1743512797043,0.917,612.85,612.17,1.695]
[1743512797044,1.36996877,612.67,612.17,1.695]
[1743512797439,1.36214268,612.66,612.17,1.695]
[1743512797644,2.44790665,612.65,612.17,1.695]
[1743512797845,1.36207518,612.64,612.17,1.695]
[1743512798040,2.44790665,612.63,612.17,1.695]
[1743512798240,1.36207518,612.62,612.17,1.695]
[1743512798547,1.36207518,612.61,612.17,1.695]
[1743512798746,1.08583147,612.61,612.17,1.695]
[1743512798941,1.36246183,612.6,612.17,1.695]
[1743512799145,1.36246183,612.59,612.17,1.695]
[1743512799341,1.36318327,612.58,612.17,1.695]
[1743512799547,1.08583147,612.59,612.17,1.695]
[1743512799748,2.44898701,612.58,612.17,1.695]
[1743512799947,1.08583147,612.58,612.17,1.695]
[1743512800353,1.08583147,612.57,612.17,1.695]
[1743512801051,1.08583147,612.56,612.17,1.695]
[1743512801650,1.08583147,612.55,612.17,1.695]
[1743512801956,1.37000821,612.55,612.17,1.695]
[1743512802154,1.36400103,612.54,612.17,1.695]
[1743512802351,1.36400103,612.53,612.17,1.695]
[1743512802653,1.36400103,612.52,612.17,1.695]
[1743512802853,1.08583147,612.51,612.17,1.695]
[1743512803660,1.08583147,612.5,612.17,1.695]
[1743512803859,1.08583147,612.49,612.17,1.695]
[1743512804453,1.08583147,612.48,612.17,1.695]
[1743512804861,0.28420111,612.48,612.17,1.695]
[1743512807758,1.0900985,612.47,612.17,1.695]
[1743512808155,0.28420111,612.48,612.17,1.695]
[1743512809057,1.08926839,612.47,612.17,1.695]
[1743512809859,0.28420111,612.48,612.17,1.695]
[1743512810562,1.3612979,612.58,612.17,1.695]
[1743512810762,1.3612979,612.57,612.17,1.695]
[1743512810964,0.28419647,612.47,612.17,1.695]
[1743512811264,1.3612979,612.55,612.17,1.695]
[1743512811462,1.37290849,612.56,612.17,1.695]
[1743512811965,1.0887097,612.55,612.17,1.695]
[1743512812565,0.28419879,612.56,612.17,1.695]
[1743512813558,1.171,612.59,612.17,1.695]
[1743512813964,0.28417326,612.55,612.17,1.695]
[1743512816667,1.171,612.59,612.17,1.695]
[1743512816963,0.28417326,612.54,612.17,1.695]
[1743512818373,0.28417326,612.54,612.17,1.17]
[1743512819672,1.171,612.59,612.17,1.17]
[1743512820269,1.08963204,612.58,612.17,1.17]
[1743512820470,1.08963204,612.57,612.17,1.17]
[1743512820966,1.37380646,612.57,612.17,1.17]
[1743512821169,1.08963204,612.56,612.06,0.806]
[1743512821776,1.08963204,612.55,612.06,0.806]
[1743512822078,1.08963204,612.55,612.06,1.331]
[1743512822473,0.28417442,612.57,612.06,1.331]
[1743512822671,1.171,612.59,612.06,1.331]
[1743512822870,1.08995422,612.58,612.06,1.331]
[1743512823576,1.08995422,612.57,612.06,2.216]
[1743512823979,1.37414141,612.57,612.06,2.216]
[1743512824180,1.08995422,612.56,612.06,3.34]
[1743512825179,1.08995422,612.55,612.06,3.34]
[1743512825780,1.08995422,612.54,612.06,3.34]
[1743512825980,1.37414489,612.54,612.06,3.34]
[1743512826583,1.08995422,612.53,612.06,3.34]
[1743512827282,0.28419067,612.54,612.06,3.34]
[1743512828282,1.09073274,612.53,612.06,3.34]
[1743512829084,0.28419299,612.52,612.06,3.34]
[1743512829681,1.226,612.51,612.06,3.34]
[1743512829883,1.226,612.51,612.07,0.27421338]
[1743512831787,1.226,612.51,612.06,3.34]
[1743512831985,1.226,612.51,612.07,0.27410371]
[1743512836690,1.226,612.51,612.08,0.525]
[1743512836893,1.226,612.51,612.09,0.27410371]
[1743512838190,1.226,612.51,612.09,1.51010371]
[1743512838388,1.226,612.51,612.1,0.27410371]
[1743512840194,1.226,612.51,612.11,0.27401112]
[1743512840388,1.226,612.51,612.12,0.27401112]
[1743512840589,1.226,612.51,612.13,0.27401112]
[1743512840790,1.226,612.51,612.14,0.27401112]
[1743512840995,1.226,612.51,612.1,0.27401112]
[1743512841194,1.226,612.51,612.09,1.236]
[1743512841195,1.226,612.51,612.11,0.27401112]
[1743512841390,1.226,612.51,612.12,0.27401112]
[1743512841592,1.226,612.51,612.13,0.27401112]
[1743512841789,1.226,612.51,612.14,0.27401112]
[1743512841996,1.226,612.51,612.1,0.27401112]
[1743512842295,1.226,612.51,612.09,1.236]
[1743512842296,1.226,612.51,612.11,0.27401112]
[1743512842494,1.226,612.51,612.1,0.27401112]
[1743512842695,1.226,612.51,612.11,0.27401112]
[1743512842989,1.226,612.51,612.12,0.27401112]
[1743512843190,1.226,612.51,612.13,0.27401112]
[1743512843395,1.226,612.51,612.1,0.27401112]
[1743512843598,1.226,612.51,612.11,0.27401112]
[1743512843792,1.226,612.51,612.12,0.27401112]
[1743512843998,1.226,612.51,612.1,0.27401112]
[1743512844193,1.226,612.51,612.13,0.27401112]
[1743512844397,1.226,612.51,612.1,0.27401112]
[1743512844698,1.226,612.51,612.11,0.27401112]
[1743512844893,1.226,612.51,612.12,0.27401112]
[1743512845096,1.226,612.51,612.13,0.27401112]
[1743512845295,1.226,612.51,612.11,0.27401112]
[1743512845498,1.226,612.51,612.12,0.27401112]
[1743512845698,1.226,612.51,612.11,0.27401112]
[1743512845900,1.226,612.51,612.12,0.27401112]
[1743512846098,1.226,612.51,612.11,0.27401112]
[1743512849599,1.226,612.51,612.1,1.486]
[1743512849801,1.226,612.51,612.11,0.27376604]
[1743512853907,1.226,612.51,612.12,0.32673332]
[1743512854207,1.226,612.51,612.13,0.27376604]
[1743512854504,1.226,612.51,612.14,0.60029799]
[1743512854806,1.226,612.51,612.15,0.60029265]
[1743512855105,1.226,612.51,612.16,0.60028732]
[1743512855300,1.226,612.51,612.17,0.60028198]
[1743512855498,1.226,612.51,612.18,0.60027664]
[1743512855698,1.226,612.51,612.19,0.27357535]
[1743512856605,1.226,612.51,612.2,0.32669062]
[1743512856906,1.226,612.51,612.21,0.27357535]
[1743512857104,1.226,612.51,612.22,0.32667995]
[1743512857305,1.226,612.51,612.23,0.27357535]
[1743512857606,1.226,612.51,612.24,0.32666928]
[1743512857804,1.226,612.51,612.25,0.27357535]
[1743512858706,1.36120683,614.0,612.25,0.27357535]
[1743512858908,0.28406308,612.84,612.25,0.27357535]
[1743512859303,1.36120683,613.97,612.25,0.27357535]
[1743512859304,0.3257435,613.98,612.25,0.27357535]
[1743512859504,0.29971375,613.97,612.25,0.27357535]
[1743512859707,0.32575942,613.95,612.25,0.27357535]
[1743512859906,0.29971375,613.94,612.25,0.27357535]
[1743512860106,0.32577534,613.92,612.25,0.27357535]
[1743512860306,1.65922172,613.91,612.25,0.27357535]
[1743512860508,1.65922172,613.9,612.25,0.27357535]
[1743512860708,0.32577534,613.92,612.25,0.27357535]
[1743512860709,1.65922172,613.89,612.25,0.27357535]
[1743512860904,1.98501829,613.88,612.25,0.27357535]
[1743512861102,2.74637529,613.87,612.25,0.27357535]
[1743512861303,0.32581249,613.85,612.25,0.27357535]
[1743512861503,1.65922172,613.84,612.25,0.27357535]
[1743512861709,0.32582841,613.82,612.25,0.27357535]
[1743512861904,1.65922172,613.81,612.25,0.27357535]
[1743512862108,0.32582841,613.82,612.25,0.27357535]
[1743512862109,0.32584434,613.79,612.25,0.27357535]
[1743512862309,2.44666154,613.78,612.24,0.32666928]
[1743512862505,0.32586027,613.76,612.25,0.27330389]
[1743512862811,1.65922839,613.75,612.25,0.27330389]
[1743512863003,1.65793096,613.74,612.25,0.27330389]
[1743512863310,2.74508453,613.73,612.25,0.27330389]
[1743512863511,1.65793096,613.72,612.25,0.27330389]
[1743512863709,1.35821054,613.71,612.25,0.27330389]
[1743512863905,1.98382848,613.7,612.25,0.27330389]
[1743512864110,0.32590275,613.68,612.26,0.27331052]
[1743512864409,2.74508993,613.67,612.25,0.27331052]
[1743512864607,3.0710033,613.66,612.26,0.27331052]
[1743512864809,1.98385504,613.65,612.25,0.27331052]
[1743512865010,0.32592399,613.64,612.26,0.27331052]
[1743512865210,1.65748328,613.63,612.25,0.27331052]
[1743512865411,1.68369207,613.62,612.24,0.32666928]
[1743512865607,1.98342996,613.61,612.26,0.27328751]
[1743512865810,1.98343528,613.6,612.27,0.27328751]
[1743512866110,1.98344059,613.59,612.28,0.27328751]
[1743512866311,2.77086689,613.58,612.25,0.27328751]
[1743512866512,1.98319905,613.57,612.26,0.27328751]
[1743512866712,3.07035794,613.56,612.25,0.27328751]
[1743512866907,1.65723788,613.55,612.25,0.27328751]
[1743512867113,1.68348241,613.54,612.25,0.27328751]
[1743512867313,1.68348772,613.53,612.25,0.27328751]
[1743512867513,1.3575053,613.52,612.25,0.27328751]
[1743512867712,2.44465887,613.51,612.25,0.27328751]
[1743512867914,1.3575053,613.5,612.25,0.27328751]
[1743512868113,2.44465887,613.49,612.25,0.27328751]
[1743512868315,1.3575053,613.48,612.25,0.27328751]
[1743512868514,1.3575053,613.47,612.25,0.27328751]
[1743512868715,2.44465887,613.46,612.26,0.27327334]
[1743512868910,2.44465887,613.45,612.25,0.27327334]
[1743512869116,1.35755683,613.44,612.26,0.27327334]
[1743512869319,1.35755683,613.43,612.25,0.27327334]
[1743512869616,1.35755683,613.42,612.26,0.27327334]
[1743512869810,2.4447104,613.41,612.27,0.27327334]
[1743512870016,1.35755683,613.4,612.28,0.27327334]
[1743512870312,2.4447104,613.39,612.29,0.27327334]
[1743512870617,1.35755683,613.38,612.29,0.27327334]
[1743512870916,1.35755683,613.37,612.29,1.41627334]
[1743512871218,1.35781015,613.36,612.3,0.27327334]
[1743512871510,1.35781015,613.35,612.3,0.27327334]
[1743512871717,1.35781015,613.34,612.29,1.143]
[1743512872017,1.35781015,613.33,612.3,0.2733231]
[1743512872215,1.35781015,613.32,612.3,0.2733231]
[1743512872412,1.35781015,613.31,612.3,0.2733231]
[1743512872613,2.44496372,613.3,612.3,0.2733231]
[1743512872917,1.35781015,613.29,612.3,0.2733231]
[1743512873115,1.35781015,613.28,612.3,0.2733231]
[1743512873315,1.35781015,613.27,612.3,0.2733231]
[1743512873617,2.44496372,613.26,612.3,0.2733231]
[1743512873814,1.35781015,613.25,612.3,0.2733231]
[1743512874012,1.35781015,613.24,612.3,0.2733231]
[1743512874317,2.44496372,613.23,612.3,0.2733231]
[1743512874518,1.35781015,613.22,612.3,0.2733231]
[1743512874719,2.44496372,613.21,612.3,0.2733231]
[1743512874919,1.35781015,613.2,612.3,0.2733231]
[1743512875113,1.35781015,613.19,612.3,0.2733231]
[1743512875312,1.35781015,613.18,612.3,0.2733231]
[1743512875518,1.35781015,613.17,612.3,0.2733231]
[1743512875719,2.44496372,613.16,612.3,0.2733231]
[1743512876018,1.35781015,613.15,612.3,0.2733231]
[1743512876217,1.35781015,613.14,612.3,0.2733231]
[1743512876418,2.44496372,613.13,612.29,1.143]
[1743512876621,1.35781015,613.12,612.3,0.27338719]
[1743512876918,1.35781015,613.11,612.3,0.27338719]
[1743512877119,1.35781015,613.1,612.3,0.27338719]
[1743512877418,1.35846121,613.09,612.3,0.27338719]
[1743512877620,1.08715357,613.08,612.3,0.27338719]
[1743512878012,1.08715357,613.07,612.3,0.27338719]
[1743512878619,1.08715357,613.06,612.3,0.27338719]
[1743512879118,1.08715357,613.05,612.3,0.27338719]
[1743512879721,1.08715357,613.04,612.3,0.27338719]
[1743512879922,1.37117144,613.04,612.3,0.27338719]
[1743512880122,0.28401787,613.04,612.3,0.27338719]
[1743512882529,0.28401787,613.04,612.31,0.27327413]
[1743512882722,0.28401787,613.04,612.32,0.27327413]
[1743512882922,0.28401787,613.04,612.33,0.27327413]
[1743512883121,0.28401787,613.04,612.34,0.27327413]
[1743512883421,0.28401787,613.04,612.35,0.27327413]
[1743512883620,0.28401787,613.04,612.29,0.27327413]
[1743512883924,0.28401787,613.04,612.3,0.27327413]
[1743512884323,0.28401787,613.04,612.31,0.27327413]
[1743512884525,0.28401787,613.04,612.32,0.27327413]
[1743512884720,0.28401787,613.04,612.29,0.27327413]
[1743512885825,1.36048237,613.32,612.29,0.27327413]
[1743512886026,0.28398543,613.03,612.29,0.27327413]
[1743512886226,1.36048237,613.3,612.29,0.27327413]
[1743512886427,1.36048237,613.29,612.29,0.27327413]
[1743512886624,1.36048237,613.28,612.29,0.27327413]
[1743512886828,1.36048237,613.27,612.29,0.27327413]
[1743512887023,1.36048237,613.26,612.29,1.46527413]
[1743512887229,1.36048237,613.25,612.3,0.27324004]
[1743512887430,1.36048237,613.24,612.3,0.27324004]
[1743512887630,1.36048237,613.23,612.3,0.27324004]
[1743512887925,1.36048237,613.22,612.3,0.79824004]
[1743512888129,2.44813439,613.21,612.31,0.27324004]
[1743512888324,1.36048237,613.2,612.31,0.27324004]
[1743512888523,1.36048237,613.19,612.31,0.27324004]
[1743512888729,1.36048237,613.18,612.32,0.2731719]
[1743512888925,1.36048237,613.17,612.31,0.2731719]
[1743512889229,2.44942735,613.16,612.32,0.2731719]
[1743512889432,1.36177533,613.15,612.33,0.2731719]
[1743512889630,1.36177533,613.14,612.31,0.2731719]
[1743512889825,1.36177533,613.13,612.3,0.525]
[1743512890032,1.36177533,613.12,612.3,0.525]
[1743512890225,1.36177533,613.11,612.3,0.525]
[1743512890430,1.36177533,613.1,612.3,0.525]
[1743512890731,2.44942735,613.09,612.3,0.525]
[1743512890928,1.36177533,613.08,612.3,0.525]
[1743512891125,1.36177533,613.07,612.3,0.525]
[1743512891325,1.36177533,613.06,612.3,0.525]
[1743512891530,1.36177533,613.05,612.3,0.525]
[1743512891832,1.36177533,613.04,612.3,0.525]
[1743512892024,1.36177533,613.03,612.3,0.525]
[1743512892229,1.36177533,613.02,612.3,0.525]
[1743512892427,1.36177533,613.01,612.3,0.525]
[1743512892632,1.36177533,613.0,612.3,0.525]
[1743512892833,1.36177533,612.99,612.3,0.525]
[1743512893033,2.44942735,612.98,612.3,0.525]
[1743512893233,1.36177533,612.97,612.3,0.525]
[1743512893430,1.36177533,612.96,612.31,0.27347106]
[1743512893628,1.36177533,612.95,612.31,0.27347106]
[1743512893836,1.36177533,612.94,612.31,0.27347106]
[1743512894031,1.36177533,612.93,612.31,0.27347106]
[1743512894235,1.36177533,612.92,612.31,0.27347106]
[1743512894435,2.44942735,612.91,612.31,0.27347106]
[1743512894628,1.36177533,612.9,612.31,0.27347106]
[1743512894834,2.44942735,612.89,612.31,0.27347106]
[1743512895031,1.08765202,612.88,612.31,0.27347106]
[1743512895431,1.08765202,612.87,612.31,0.27347106]
[1743512895828,1.08765202,612.86,612.31,0.27347106]
[1743512896538,1.08765202,612.85,612.31,0.27347106]
[1743512896938,0.28402367,613.05,612.31,0.27347106]
[1743512897136,1.36426658,613.04,612.31,0.27347106]
[1743512897333,1.36426658,613.03,612.31,0.27347106]
[1743512897536,1.36426658,613.02,612.31,0.27347106]
[1743512897735,1.36426658,613.01,612.31,0.27347106]
[1743512897939,1.36426658,613.0,612.31,0.27347106]
[1743512898139,1.36426658,612.99,612.31,0.27347106]
[1743512898339,1.36426658,612.98,612.31,0.27347106]
[1743512898540,1.36426658,612.97,612.31,0.27347106]
[1743512898736,1.36426658,612.96,612.31,0.27347106]
[1743512898938,2.45546818,612.95,612.31,0.27347106]
[1743512899141,1.36426658,612.94,612.31,0.27347106]
[1743512899340,2.45546818,612.93,612.31,0.27347106]
[1743512899542,1.0912016,612.93,612.31,0.27347106]
[1743512899744,1.36479888,612.92,612.31,0.27347106]
[1743512899942,1.36479888,612.91,612.31,0.27347106]
[1743512900143,1.36479888,612.9,612.31,0.27347106]
[1743512900442,2.45600048,612.89,612.31,0.27347106]
[1743512900639,2.45600048,612.89,612.31,1.46447106]
[1743512900640,1.36479888,612.88,612.31,1.46447106]
[1743512900835,1.0912016,612.88,612.32,0.27347106]
[1743512901043,1.37526004,612.88,612.32,0.27347106]
[1743512901242,1.36489083,612.87,612.32,0.27347106]
[1743512901446,1.0912016,612.86,612.32,0.27347106]
[1743512901939,1.0912016,612.86,612.33,0.868]
[1743512902143,1.0912016,612.85,612.33,0.868]
[1743512902746,1.0912016,612.84,612.33,0.868]
[1743512902947,1.0912016,612.84,612.34,0.27345533]
[1743512903142,0.28405844,612.88,612.35,0.27345417]
[1743512903338,0.28405844,612.88,612.34,0.27345417]
[1743512903546,0.28405844,612.88,612.35,0.27345503]
[1743512903746,1.178,613.32,612.33,0.868]
[1743512903944,1.37579625,612.87,612.34,0.2734306]
[1743512904145,2.45718473,612.86,612.33,0.868]
[1743512904345,1.09180155,612.86,612.33,0.868]
[1743512904740,1.09180155,612.85,612.33,0.868]
[1743512904941,1.37585999,612.85,612.33,0.868]
[1743512905144,1.09180155,612.84,612.33,0.868]
[1743512905850,1.09180155,612.83,612.34,0.2734538]
[1743512906651,1.09180155,612.82,612.34,0.2734538]
[1743512906847,1.09180155,612.82,612.35,0.525]
[1743512907050,1.09180155,612.81,612.36,0.2734538]
[1743512907649,1.09180155,612.81,612.35,0.525]
[1743512907952,1.09180155,612.8,612.36,0.27338086]
[1743512908151,1.09180155,612.79,612.35,0.525]
[1743512908750,0.28405844,612.85,612.35,0.525]
[1743512908946,1.365681,612.84,612.35,0.525]
[1743512909151,1.09214021,612.83,612.35,0.525]
[1743512909351,2.18514021,612.83,612.35,0.525]
[1743512909746,1.09214021,612.82,612.35,0.525]
[1743512910045,1.37620213,612.82,612.35,0.525]
[1743512910248,1.09214021,612.81,612.35,0.525]
[1743512910953,1.09214021,612.8,612.35,0.525]
[1743512911248,0.28406192,612.82,612.36,0.27336082]
[1743512912055,1.09238136,612.81,612.36,0.27336082]
[1743512912453,1.09238136,612.8,612.36,0.27336082]
[1743512912853,0.28406076,612.79,612.36,0.27336082]
[1743512913762,0.28406076,612.79,612.35,0.525]
[1743512914764,0.28406076,612.79,612.36,0.2732629]
[1743512914959,0.28406076,612.79,612.36,0.98]
[1743512915161,0.28406076,612.79,612.37,0.27328322]
[1743512919968,1.093,612.83,612.37,0.27328322]
[1743512922265,1.093,612.83,612.38,0.27329906]
[1743512922465,1.093,612.83,612.39,0.27329906]
[1743512922668,1.093,612.83,612.4,0.27329906]
[1743512922871,1.093,612.83,612.41,0.27329906]
[1743512923171,1.093,612.83,612.42,0.27329906]
[1743512923369,1.093,612.83,612.37,0.27329906]
[1743512923570,1.093,612.83,612.38,0.27329906]
[1743512923770,1.093,612.83,612.37,0.27329906]
[1743512926572,1.093,612.83,612.38,0.525]
[1743512926772,1.093,612.83,612.39,0.27329906]
[1743512932075,1.093,612.83,612.38,0.525]
[1743512932076,1.093,612.83,612.4,0.5997132]
[1743512932270,1.093,612.83,612.41,0.27312927]
[1743512933573,1.093,612.83,612.41,0.32657859]
[1743512933776,1.093,612.83,612.42,0.27300036]
[1743512934578,1.093,612.83,612.43,0.32656793]
[1743512934778,1.093,612.83,612.44,0.27300036]
[1743512934977,1.093,612.83,612.44,0.59956296]
[1743512935178,1.093,612.83,612.45,0.27300036]
[1743512938381,0.28395414,613.05,612.45,0.27300036]
[1743512939677,1.36324149,614.3,612.45,0.27300036]
[1743512939879,0.32558442,614.28,612.45,0.27300036]
[1743512940083,1.36324149,614.27,612.44,0.3265626]
[1743512940283,0.32560032,614.25,612.45,0.2729115]
[1743512940480,1.66286081,614.24,612.45,0.2729115]
[1743512940679,0.32561622,614.22,612.45,0.2729115]
[1743512940876,1.66286081,614.21,612.45,0.2729115]
[1743512941082,0.32563213,614.19,612.45,0.2729115]
[1743512941275,0.29961932,614.18,612.45,0.2729115]
[1743512941480,0.32564803,614.16,612.45,0.2729115]
[1743512941680,1.66019947,614.15,612.45,0.2729115]
[1743512941878,0.32566394,614.13,612.45,0.2729115]
[1743512942078,1.66019947,614.12,612.45,0.2729115]
[1743512942284,1.66019947,614.11,612.45,0.2729115]
[1743512942479,1.98587932,614.1,612.45,0.2729115]
[1743512942684,0.32569046,614.08,612.45,0.2729115]
[1743512942883,1.66019947,614.07,612.45,0.2729115]
[1743512943084,0.32570637,614.05,612.45,0.2729115]
[1743512943284,1.66019947,614.04,612.45,0.2729115]
[1743512943480,2.75027707,614.03,612.45,0.2729115]
[1743512943682,1.66019947,614.02,612.45,0.2729115]
[1743512943883,1.36058015,614.01,612.45,0.2729115]
[1743512944082,1.36058015,614.0,612.45,0.2729115]
[1743512944283,0.3257435,613.98,612.45,0.2729115]
[1743512944480,1.36058015,613.97,612.45,0.2729115]
[1743512944684,0.32575942,613.95,612.45,0.2729115]
[1743512944887,1.65967679,613.94,612.45,0.2729115]
[1743512945088,0.32577534,613.92,612.45,0.2729115]
[1743512945289,1.65967679,613.91,612.45,0.2729115]
[1743512945485,1.0900776,613.93,612.45,0.2729115]
[1743512945486,0.32579126,613.89,612.45,0.2729115]